fUST/lending_fUST_20250107
["ID","MTS","AMOUNT","RATE_DAILY","PERIOD"]
[347982910,1736260243051,-500.0,0.00019178,2]
[347982912,1736260243064,-1166.51,0.00019178,2]
[347982914,1736260243073,-500.0,0.00019178,2]
[347982915,1736260243082,-500.0,0.00019178,2]
[347982916,1736260243091,-500.0,0.00019178,2]
[347982917,1736260243100,-45571.21,0.00019178,2]
[347982918,1736260243109,-510.86138593,0.00019178,2]
[347982919,1736260243118,-500.0,0.00019178,2]
[347982920,1736260243127,-500.0,0.00019178,2]
[347982921,1736260243135,-859.83,0.00019178,2]
[347982922,1736260243144,-500.0,0.00019178,2]
[347982923,1736260243153,-500.0,0.00019178,2]
[347982924,1736260243162,-500.0,0.00019178,2]
[347982925,1736260243172,-500.0,0.00019178,2]
[347982926,1736260243182,-1712.95,0.00019178,2]
[347982927,1736260243191,-500.0,0.00019178,2]
[347982928,1736260243200,-500.0,0.00019178,2]
[347982929,1736260243209,-503.34159975,0.00019178,2]
[347982930,1736260243218,-1010.16,0.00019178,2]
[347982931,1736260243227,-500.0,0.00019178,2]
[347982932,1736260243237,-500.0,0.00019178,2]
[347982933,1736260243246,-500.0,0.00019178,2]
[347982934,1736260243256,-500.0,0.00019178,2]
[347982935,1736260243265,-500.0,0.00019178,2]
[347982936,1736260243275,-500.74825996,0.00019178,2]
[347982937,1736260243284,-500.0,0.00019178,2]
[347982939,1736260243294,-500.0,0.00019178,2]
[347982941,1736260243304,-4196.40851658,0.00019178,2]
[347983022,1736260244097,-697.03423744,0.00018207,2]
[347983025,1736260244109,-141.06322424,0.00018207,2]
[347983027,1736260244119,-150.0,0.00018539,2]
[347983029,1736260244128,-537.41510922,0.00018903,2]
[347983030,1736260244137,-220.0253986,0.00018903,2]
[347983032,1736260244147,-158.40922348,0.00018903,2]
[347983034,1736260244156,-151.0,0.00018934,2]
[347983036,1736260244166,-1142.08704446,0.00019178,2]
[347983072,1736260244508,-151.0,0.00019,2]
[347983074,1736260244518,-151.0,0.00019141,2]
[347983076,1736260244527,-38.2979998,0.00019173,2]
[347985270,1736261046400,332.712487,0.00013973,2]
[347985271,1736261122609,950.07114195,0.00025,120]
[347985346,1736261432741,-150.0,0.000173,2]
[347985349,1736261432751,-595.724,0.0001822,2]
[347985351,1736261432760,-7286.0,0.00018233,2]
[347985353,1736261432769,-300.0,0.00018233,2]
[347985355,1736261432779,-11067.56170748,0.00018234,2]
[347985357,1736261432788,-150.0,0.000183,2]
[347985359,1736261432798,-11067.56170748,0.0001851,2]
[347985361,1736261432807,-394.0,0.00018611,2]
[347985363,1736261432817,-150.0,0.00018611,2]
[347985365,1736261432826,-2081.0,0.00018611,2]
[347985367,1736261432835,-535.0,0.00018611,2]
[347985369,1736261432845,-2317.0,0.00018611,2]
[347985372,1736261432854,-153.6,0.00018612,2]
[347985374,1736261432864,-160.0,0.0001862,3]
[347985376,1736261432874,-160.0,0.0001862,5]
[347985378,1736261432884,-466.36430647,0.00018655,2]
[347985380,1736261432893,-1000.0,0.0001872,10]
[347985382,1736261432903,-1000.0,0.0001874,10]
[347985384,1736261432912,-1000.0,0.0001876,10]
[347985386,1736261432922,-1000.0,0.0001878,10]
[347985388,1736261432931,-1000.0,0.000188,10]
[347985390,1736261432941,-1000.0,0.0001882,10]
[347985392,1736261432951,-11067.56170748,0.00018823,2]
[347985394,1736261432960,-1000.0,0.0001884,10]
[347985396,1736261432970,-1000.0,0.0001886,10]
[347985398,1736261432979,-1000.0,0.0001888,10]
[347985400,1736261432989,-1000.0,0.000189,10]
[347985402,1736261432999,-1000.0,0.0001892,10]
[347985404,1736261433008,-1000.0,0.0001894,10]
[347985406,1736261433017,-1000.0,0.0001896,10]
[347985408,1736261433027,-237.463,0.00018977,2]
[347985410,1736261433037,-1000.0,0.0001898,10]
[347985412,1736261433047,-1000.0,0.00019,10]
[347985414,1736261433057,-1000.0,0.0001902,10]
[347985416,1736261433067,-1000.0,0.0001904,10]
[347985418,1736261433077,-1000.0,0.0001906,10]
[347985420,1736261433087,-11067.56170749,0.00019076,2]
[347985422,1736261433097,-1000.0,0.0001908,10]
[347985424,1736261433106,-300.0,0.000191,8]
[347985426,1736261433116,-1000.0,0.000191,10]
[347985428,1736261433125,-499.0,0.00019148,2]
[347985430,1736261433135,-500.0,0.00019173,2]
[347985432,1736261433145,-500.0,0.00019173,2]
[347985434,1736261433154,-500.0,0.00019173,2]
[347985436,1736261433164,-166.24239611,0.00019173,2]
[347985438,1736261433173,-500.0,0.00019173,2]
[347985440,1736261433183,-152.33424256,0.00019173,2]
[347985442,1736261433192,-151.0,0.00019177,2]
[347985445,1736261433203,-154.01777902,0.00019177,2]
[347985447,1736261433213,-376.19057645,0.00019177,2]
[347985448,1736261433223,-500.0,0.00019178,2]
[347985450,1736261433234,-500.0,0.00019178,2]
[347985452,1736261433245,-151.0,0.00019178,2]
[347985454,1736261433255,-151.0,0.00019178,2]
[347985456,1736261433267,-151.0,0.00019178,2]
[347985458,1736261433276,-151.0,0.00019178,2]
[347985460,1736261433286,-221.444394,0.00019178,2]
[347985462,1736261433295,-589.15,0.00019178,2]
[347985465,1736261433305,-501.96,0.00019178,2]
[347985467,1736261433314,-500.0,0.00019178,2]
[347985468,1736261433323,-355.40546766,0.00019178,2]
[347985470,1736261433333,-500.0,0.00019178,2]
[347985473,1736261433345,-500.0,0.00019178,2]
[347985475,1736261433360,-209.81826459,0.00019178,2]
[347985477,1736261433370,-500.0,0.00019178,2]
[347985479,1736261433379,-500.0,0.00019178,2]
[347985480,1736261433389,-500.0,0.00019178,2]
[347985482,1736261433398,-500.0,0.00019178,2]
[347985485,1736261433409,-500.0,0.00019178,2]
[347985487,1736261433418,-500.0,0.00019178,2]
[347985489,1736261433427,-500.0,0.00019178,2]
[347985490,1736261433436,-500.0,0.00019178,2]
[347985492,1736261433446,-533.25725093,0.00019178,2]
[347985494,1736261433455,-500.0,0.00019178,2]
[347985496,1736261433464,-583.05,0.00019178,2]
[347985499,1736261433473,-500.0,0.00019178,2]
[347985501,1736261433483,-500.0,0.00019178,2]
[347985503,1736261433500,-500.0,0.00019178,2]
[347985505,1736261433510,-500.0,0.00019178,2]
[347985507,1736261433519,-500.0,0.00019178,2]
[347985509,1736261433529,-500.0,0.00019178,2]
[347985511,1736261433538,-500.0,0.00019178,2]
[347985513,1736261433550,-500.0,0.00019178,2]
[347985515,1736261433560,-500.0,0.00019178,2]
[347985517,1736261433574,-500.0,0.00019178,2]
[347985519,1736261433583,-500.0,0.00019178,2]
[347985521,1736261433593,-500.0,0.00019178,2]
[347985523,1736261433602,-500.0,0.00019178,2]
[347985525,1736261433612,-500.0,0.00019178,2]
[347985527,1736261433621,-500.0,0.00019178,2]
[347985529,1736261433631,-500.0,0.00019178,2]
[347985531,1736261433640,-500.0,0.00019178,2]
[347985533,1736261433649,-500.0,0.00019178,2]
[347985535,1736261433659,-151.0,0.00019178,2]
[347985537,1736261433668,-151.0,0.00019178,2]
[347985539,1736261433677,-500.0,0.00019178,2]
[347985541,1736261433686,-500.0,0.00019178,2]
[347985543,1736261433696,-500.0,0.00019178,2]
[347985545,1736261433706,-500.0,0.00019178,2]
[347985547,1736261433715,-500.0,0.00019178,2]
[347985548,1736261433725,-500.0,0.00019178,2]
[347985551,1736261433734,-500.0,0.00019178,2]
[347985552,1736261433744,-736.34,0.00019178,2]
[347985554,1736261433753,-151.0,0.00019178,2]
[347985556,1736261433764,-500.0,0.00019178,2]
[347985559,1736261433773,-500.0,0.00019178,2]
[347985561,1736261433783,-500.0,0.00019178,2]
[347985563,1736261433793,-500.0,0.00019178,2]
[347985565,1736261433802,-500.0,0.00019178,2]
[347985567,1736261433812,-754.8,0.00019178,2]
[347985569,1736261433822,-500.0,0.00019178,2]
[347985571,1736261433831,-500.0,0.00019178,2]
[347985573,1736261433840,-500.0,0.00019178,2]
[347985575,1736261433850,-500.0,0.00019178,2]
[347985577,1736261433859,-500.0,0.00019178,2]
[347985579,1736261433869,-645.60074287,0.00019178,2]
[347985581,1736261433879,-500.0,0.00019178,2]
[347985583,1736261433888,-639.32927632,0.00019178,2]
[347985584,1736261433898,-500.0,0.00019178,2]
[347985586,1736261433907,-547.95129586,0.00019178,2]
[347985589,1736261433917,-500.0,0.00019178,2]
[347985591,1736261433926,-500.0,0.00019178,2]
[347985592,1736261433936,-500.0,0.00019178,2]
[347985594,1736261433945,-500.0,0.00019178,2]
[347985597,1736261433955,-500.0,0.00019178,2]
[347985599,1736261433964,-500.0,0.00019178,2]
[347985601,1736261433974,-500.0,0.00019178,2]
[347985602,1736261433983,-500.0,0.00019178,2]
[347985604,1736261434009,-500.0,0.00019178,2]
[347985606,1736261434019,-500.0,0.00019178,2]
[347985608,1736261434028,-528.77,0.00019178,2]
[347985610,1736261434039,-500.0,0.00019178,2]
[347985613,1736261434049,-500.0,0.00019178,2]
[347985615,1736261434058,-500.0,0.00019178,2]
[347985617,1736261434068,-500.0,0.00019178,2]
[347985619,1736261434078,-500.0,0.00019178,2]
[347985620,1736261434088,-500.0,0.00019178,2]
[347985623,1736261434098,-500.0,0.00019178,2]
[347985624,1736261434108,-500.0,0.00019178,2]
[347985627,1736261434118,-500.0,0.00019178,2]
[347985629,1736261434127,-500.0,0.00019178,2]
[347985630,1736261434136,-500.0,0.00019178,2]
[347985632,1736261434146,-565.01,0.00019178,2]
[347985635,1736261434156,-726.9,0.00019178,2]
[347985637,1736261434166,-500.0,0.00019178,2]
[347985638,1736261434176,-500.0,0.00019178,2]
[347985641,1736261434186,-500.0,0.00019178,2]
[347985643,1736261434195,-500.0,0.00019178,2]
[347985644,1736261434205,-500.0,0.00019178,2]
[347985646,1736261434216,-500.0,0.00019178,2]
[347985648,1736261434225,-500.0,0.00019178,2]
[347985650,1736261434235,-500.0,0.00019178,2]
[347985652,1736261434244,-500.0,0.00019178,2]
[347985655,1736261434254,-500.0,0.00019178,2]
[347985657,1736261434264,-500.0,0.00019178,2]
[347985659,1736261434275,-500.0,0.00019178,2]
[347985660,1736261434285,-500.0,0.00019178,2]
[347985662,1736261434295,-500.0,0.00019178,2]
[347985665,1736261434306,-336.45968115,0.00019178,2]
[347985667,1736261434315,-500.0,0.00019178,2]
[347985669,1736261434325,-893.05,0.00019178,2]
[347985671,1736261434334,-347.93001752,0.00019178,2]
[347985673,1736261434344,-500.0,0.00019178,2]
[347985675,1736261434354,-500.0,0.00019178,2]
[347985677,1736261434365,-500.0,0.00019178,2]
[347985679,1736261434375,-10237.63,0.00019178,2]
[347985681,1736261434384,-500.0,0.00019178,2]
[347985683,1736261434394,-433.53532199,0.00019178,2]
[347985684,1736261434404,-556.59,0.00019178,2]
[347985686,1736261434414,-859.73,0.00019178,2]
[347985688,1736261434423,-500.0,0.00019178,2]
[347985690,1736261434434,-500.0,0.00019178,2]
[347985693,1736261434443,-500.0,0.00019178,2]
[347985694,1736261434453,-500.0,0.00019178,2]
[347985696,1736261434463,-500.0,0.00019178,2]
[347985698,1736261434472,-520.01481988,0.00019178,2]
[347985701,1736261434482,-500.0,0.00019178,2]
[347985702,1736261434497,-500.0,0.00019178,2]
[347985704,1736261434517,-500.0,0.00019178,2]
[347985706,1736261434526,-500.0,0.00019178,2]
[347985708,1736261434535,-500.0,0.00019178,2]
[347985710,1736261434546,-500.0,0.00019178,2]
[347985713,1736261434556,-500.0,0.00019178,2]
[347985715,1736261434568,-500.0,0.00019178,2]
[347985717,1736261434580,-500.0,0.00019178,2]
[347985719,1736261434590,-500.0,0.00019178,2]
[347985721,1736261434599,-500.0,0.00019178,2]
[347985723,1736261434609,-500.0,0.00019178,2]
[347985725,1736261434618,-500.0,0.00019178,2]
[347985727,1736261434627,-500.0,0.00019178,2]
[347985729,1736261434637,-500.0,0.00019178,2]
[347985745,1736261434774,-500.0,0.00019178,2]
[347985747,1736261434784,-500.0,0.00019178,2]
[347985749,1736261434793,-500.0,0.00019178,2]
[347985751,1736261434803,-501.88455972,0.00019178,2]
[347985753,1736261434812,-500.0,0.00019178,2]
[347985755,1736261434821,-500.0,0.00019178,2]
[347985757,1736261434831,-500.0,0.00019178,2]
[347985759,1736261434840,-500.0,0.00019178,2]
[347985761,1736261434849,-500.0,0.00019178,2]
[347985763,1736261434860,-500.0,0.00019178,2]
[347985765,1736261434868,-500.0,0.00019178,2]
[347985767,1736261434878,-500.0,0.00019178,2]
[347985769,1736261434887,-500.0,0.00019178,2]
[347985771,1736261434897,-663.42,0.00019178,2]
[347985773,1736261434906,-500.0,0.00019178,2]
[347985775,1736261434915,-548.97,0.00019178,2]
[347985777,1736261434924,-1683.52,0.00019178,2]
[347985779,1736261434934,-500.0,0.00019178,2]
[347985781,1736261434943,-500.0,0.00019178,2]
[347985783,1736261434952,-500.0,0.00019178,2]
[347985785,1736261434962,-500.0,0.00019178,2]
[347985787,1736261434971,-500.0,0.00019178,2]
[347985789,1736261434980,-500.0,0.00019178,2]
[347985791,1736261434989,-501.87398666,0.00019178,2]
[347985793,1736261435005,-500.0,0.00019178,2]
[347985795,1736261435019,-500.0,0.00019178,2]
[347985797,1736261435028,-500.0,0.00019178,2]
[347985799,1736261435038,-500.0,0.00019178,2]
[347985801,1736261435047,-500.0,0.00019178,2]
[347985803,1736261435057,-500.0,0.00019178,2]
[347985805,1736261435066,-500.0,0.00019178,2]
[347985806,1736261435075,-500.9863759,0.00019178,2]
[347985809,1736261435084,-500.0,0.00019178,2]
[347985810,1736261435094,-500.0,0.00019178,2]
[347985813,1736261435104,-500.0,0.00019178,2]
[347985814,1736261435113,-500.0,0.00019178,2]
[347985817,1736261435123,-500.0,0.00019178,2]
[347985818,1736261435132,-500.0,0.00019178,2]
[347985820,1736261435141,-500.0,0.00019178,2]
[347985822,1736261435151,-151.0,0.00019178,2]
[347985824,1736261435160,-500.0,0.00019178,2]
[347985827,1736261435170,-151.0,0.00019178,2]
[347985828,1736261435178,-151.0,0.00019178,2]
[347985830,1736261435187,-500.0,0.00019178,2]
[347985833,1736261435197,-500.0,0.00019178,2]
[347985835,1736261435206,-151.0,0.00019178,2]
[347985836,1736261435215,-500.0,0.00019178,5]
[347985839,1736261435225,-1369.92,0.00019178,2]
[347985840,1736261435234,-500.0,0.00019178,2]
[347985843,1736261435253,-500.0,0.00019178,2]
[347985845,1736261435264,-500.0,0.00019178,2]
[347985846,1736261435274,-500.0,0.00019178,2]
[347985848,1736261435284,-500.0,0.00019178,2]
[347985851,1736261435293,-500.0,0.00019178,2]
[347985852,1736261435303,-500.0,0.00019178,2]
[347985854,1736261435313,-307.47982435,0.00019178,2]
[347985856,1736261435322,-500.0,0.00019178,2]
[347985858,1736261435332,-500.0,0.00019178,2]
[347985861,1736261435343,-10072.58,0.00019178,2]
[347985862,1736261435353,-500.0,0.00019178,2]
[347985864,1736261435362,-500.0,0.00019178,2]
[347985867,1736261435371,-500.0,0.00019178,2]
[347985869,1736261435380,-500.0,0.00019178,2]
[347985870,1736261435390,-500.0,0.00019178,2]
[347985873,1736261435399,-500.0,0.00019178,2]
[347985874,1736261435408,-500.0,0.00019178,2]
[347985876,1736261435418,-151.0,0.00019178,2]
[347985878,1736261435427,-500.0,0.00019178,2]
[347985880,1736261435437,-151.0,0.00019178,2]
[347985882,1736261435446,-151.0,0.00019178,2]
[347985884,1736261435455,-151.0,0.00019178,2]
[347985886,1736261435464,-151.0,0.00019178,2]
[347985888,1736261435473,-500.0,0.00019178,2]
[347985890,1736261435483,-151.0,0.00019178,2]
[347985892,1736261435492,-151.0,0.00019178,2]
[347985894,1736261435501,-151.0,0.00019178,2]
[347985896,1736261435511,-267.071855,0.00019178,2]
[347985899,1736261435521,-500.0,0.00019178,2]
[347985901,1736261435530,-920.02,0.00019178,2]
[347985902,1736261435539,-1881.67,0.00019178,2]
[347985904,1736261435548,-500.0,0.00019178,2]
[347985906,1736261435557,-500.0,0.00019178,2]
[347985908,1736261435567,-500.0,0.00019178,2]
[347985910,1736261435576,-500.0,0.00019178,2]
[347985912,1736261435586,-500.0,0.00019178,2]
[347985914,1736261435595,-500.0,0.00019178,2]
[347985916,1736261435604,-500.0,0.00019178,2]
[347985918,1736261435613,-582.28267191,0.00019178,2]
[347985920,1736261435622,-510.00683289,0.00019178,2]
[347985922,1736261435632,-504.87411607,0.00019178,2]
[347985924,1736261435641,-10446.71,0.00019178,2]
[347985926,1736261435651,-479.86566558,0.00019178,2]
[347985928,1736261435660,-500.0,0.00019178,2]
[347985930,1736261435670,-500.0,0.00019178,2]
[347985932,1736261435679,-500.0,0.00019178,2]
[347985934,1736261435689,-500.0,0.00019178,2]
[347985937,1736261435699,-500.0,0.00019178,2]
[347985939,1736261435709,-500.0,0.00019178,2]
[347985940,1736261435720,-500.0,0.00019178,2]
[347985942,1736261435729,-511.17184149,0.00019178,2]
[347985944,1736261435739,-504.79522426,0.00019178,2]
[347985946,1736261435756,-500.0,0.00019178,2]
[347985948,1736261435769,-500.0,0.00019178,2]
[347985950,1736261435778,-500.0,0.00019178,2]
[347985952,1736261435787,-500.0,0.00019178,2]
[347985954,1736261435797,-500.0,0.00019178,2]
[347985956,1736261435807,-500.0,0.00019178,2]
[347985958,1736261435816,-500.0,0.00019178,2]
[347985960,1736261435826,-1863.36,0.00019178,2]
[347985962,1736261435835,-500.0,0.00019178,2]
[347985964,1736261435844,-500.0,0.00019178,2]
[347985966,1736261435855,-1737.55,0.00019178,2]
[347985968,1736261435864,-502.9896972,0.00019178,2]
[347985970,1736261435873,-500.0,0.00019178,2]
[347985972,1736261435882,-500.0,0.00019178,2]
[347985974,1736261435892,-500.0,0.00019178,2]
[347985976,1736261435901,-500.0,0.00019178,2]
[347985978,1736261435911,-500.0,0.00019178,2]
[347985980,1736261435920,-500.0,0.00019178,2]
[347985982,1736261435930,-1086.02,0.00019178,2]
[347985984,1736261435940,-500.0,0.00019178,2]
[347985986,1736261435949,-500.0,0.00019178,2]
[347985989,1736261435959,-500.0,0.00019178,2]
[347985990,1736261435968,-500.0,0.00019178,2]
[347985993,1736261435978,-595.91,0.00019178,2]
[347985995,1736261435987,-500.0,0.00019178,2]
[347985997,1736261436006,-151.0,0.00019178,2]
[347985999,1736261436016,-151.0,0.00019178,2]
[347986000,1736261436026,-151.0,0.00019178,2]
[347986003,1736261436037,-151.0,0.00019178,2]
[347986004,1736261436047,-500.0,0.00019178,2]
[347986006,1736261436056,-151.0,0.00019178,2]
[347986008,1736261436066,-151.0,0.00019178,2]
[347986010,1736261436075,-524.59,0.00019178,2]
[347986012,1736261436085,-151.0,0.00019178,2]
[347986014,1736261436094,-151.0,0.00019178,2]
[347986016,1736261436103,-151.0,0.00019178,2]
[347986018,1736261436113,-151.0,0.00019178,2]
[347986020,1736261436123,-500.0,0.00019178,2]
[347986022,1736261436133,-151.0,0.00019178,2]
[347986024,1736261436142,-500.0,0.00019178,2]
[347986026,1736261436151,-503.52612224,0.00019178,2]
[347986028,1736261436160,-263.559406,0.00019178,2]
[347986030,1736261436169,-500.0,0.00019178,2]
[347986032,1736261436179,-500.0,0.00019178,2]
[347986034,1736261436188,-629.95,0.00019178,2]
[347986036,1736261436198,-500.0,0.00019178,2]
[347986038,1736261436207,-584.45,0.00019178,2]
[347986040,1736261436216,-500.0,0.00019178,2]
[347986043,1736261436227,-500.0,0.00019178,2]
[347986044,1736261436236,-500.0,0.00019178,2]
[347986046,1736261436251,-500.0,0.00019178,2]
[347986049,1736261436260,-500.0,0.00019178,2]
[347986051,1736261436273,-500.0,0.00019178,2]
[347986053,1736261436282,-500.0,0.00019178,2]
[347986054,1736261436292,-500.0,0.00019178,2]
[347986056,1736261436301,-500.0,0.00019178,2]
[347986058,1736261436310,-500.0,0.00019178,2]
[347986060,1736261436320,-1668.44,0.00019178,2]
[347986062,1736261436329,-500.0,0.00019178,2]
[347986064,1736261436338,-500.0,0.00019178,2]
[347986066,1736261436347,-500.0,0.00019178,2]
[347986068,1736261436356,-1171.77,0.00019178,2]
[347986070,1736261436365,-500.0,0.00019178,2]
[347986072,1736261436374,-4992.2,0.00019178,2]
[347986074,1736261436383,-500.0,0.00019178,2]
[347986076,1736261436392,-500.0,0.00019178,2]
[347986078,1736261436401,-500.0,0.00019178,2]
[347986080,1736261436411,-500.0,0.00019178,2]
[347986082,1736261436420,-1069.82,0.00019178,2]
[347986084,1736261436429,-500.0,0.00019178,2]
[347986086,1736261436438,-500.0,0.00019178,2]
[347986089,1736261436448,-500.0,0.00019178,2]
[347986090,1736261436457,-561.92968109,0.00019178,2]
[347986093,1736261436467,-500.0,0.00019178,2]
[347986095,1736261436476,-500.0,0.00019178,2]
[347986097,1736261436485,-500.0,0.00019178,2]
[347986099,1736261436500,-500.0,0.00019178,2]
[347986101,1736261436509,-500.0,0.00019178,2]
[347986103,1736261436518,-500.0,0.00019178,2]
[347986105,1736261436528,-500.0,0.00019178,2]
[347986107,1736261436537,-500.0,0.00019178,2]
[347986109,1736261436545,-1073.65,0.00019178,2]
[347986111,1736261436555,-500.0,0.00019178,2]
[347986113,1736261436564,-500.0,0.00019178,2]
[347986115,1736261436574,-500.0,0.00019178,2]
[347986117,1736261436583,-500.0,0.00019178,2]
[347986119,1736261436594,-502.8444591,0.00019178,2]
[347986121,1736261436603,-500.0,0.00019178,2]
[347986123,1736261436612,-500.0,0.00019178,2]
[347986125,1736261436622,-500.0,0.00019178,2]
[347986127,1736261436633,-500.0,0.00019178,2]
[347986129,1736261436642,-500.0,0.00019178,2]
[347986131,1736261436652,-500.0,0.00019178,2]
[347986133,1736261436661,-910.32,0.00019178,2]
[347986135,1736261436671,-500.0,0.00019178,2]
[347986137,1736261436680,-500.0,0.00019178,2]
[347986138,1736261436689,-500.0,0.00019178,2]
[347986141,1736261436698,-505.79568487,0.00019178,2]
[347986142,1736261436708,-500.0,0.00019178,2]
[347986144,1736261436717,-500.0,0.00019178,2]
[347986146,1736261436727,-500.0,0.00019178,2]
[347986148,1736261436737,-500.0,0.00019178,2]
[347986150,1736261436752,-500.0,0.00019178,2]
[347986151,1736261436761,-2127.31,0.00019178,2]
[347986152,1736261436770,-500.0,0.00019178,2]
[347986153,1736261436779,-631.28012827,0.00019178,2]
[347986154,1736261436788,-500.0,0.00019178,2]
[347986155,1736261436797,-500.0,0.00019178,2]
[347986156,1736261436805,-500.0,0.00019178,2]
[347986157,1736261436814,-500.0,0.00019178,2]
[347986158,1736261436823,-500.0,0.00019178,2]
[347986159,1736261436832,-276.79950226,0.00019178,2]
[347986160,1736261436841,-557.57,0.00019178,2]
[347986161,1736261436851,-500.0,0.00019178,2]
[347986162,1736261436859,-500.0,0.00019178,2]
[347986163,1736261436869,-500.0,0.00019178,2]
[347986164,1736261436877,-500.0,0.00019178,2]
[347986165,1736261436886,-1533.11,0.00019178,2]
[347986166,1736261436895,-1077.58,0.00019178,2]
[347986167,1736261436904,-29.66270184,0.00019178,2]
[347986194,1736261437213,-470.33729816,0.00019178,2]
[347986197,1736261437223,-968.07,0.00019178,2]
[347986198,1736261437232,-500.0,0.00019178,2]
[347986201,1736261437243,-500.0,0.00019178,2]
[347986203,1736261437253,-503.07596826,0.00019178,2]
[347986205,1736261437264,-251.0,0.00019178,2]
[347986366,1736261438803,-362.50863921,0.000189,2]
[347986377,1736261438901,-2853.47038515,0.000189,2]
[347986380,1736261438910,-3215.97902436,0.00019072,2]
[347986382,1736261438920,-537.43822182,0.00019173,2]
[347986383,1736261438929,-500.0,0.00019178,2]
[347986387,1736261438939,-500.0,0.00019178,2]
[347986390,1736261438949,-500.0,0.00019178,2]
[347986394,1736261438958,-500.0,0.00019178,2]
[347986396,1736261438968,-996.82713978,0.00019178,2]
[347986605,1736261440837,-6.57286022,0.00019178,2]
[347986607,1736261440846,-150.03,0.00019178,2]
[347986609,1736261440856,-609.28029143,0.00019178,2]
[347986611,1736261440865,-500.0,0.00019178,2]
[347986613,1736261440874,-150.11,0.00019178,2]
[347986615,1736261440883,-500.0,0.00019178,2]
[347986617,1736261440892,-1399.74,0.00019178,2]
[347986619,1736261440901,-500.0,0.00019178,2]
[347986621,1736261440911,-500.0,0.00019178,2]
[347986623,1736261440920,-500.0,0.00019178,2]
[347986625,1736261440929,-215.26684835,0.00019178,2]
[347986627,1736261440941,-284.73315165,0.00019178,2]
[347986629,1736261440950,-420.64991615,0.00019178,2]
[347986887,1736261443667,-299.13506511,0.00019173,2]
[347986889,1736261443677,-79.35008385,0.00019178,2]
[347986891,1736261443687,-500.0,0.00019178,2]
[347986893,1736261443696,-500.0,0.00019178,2]
[347986895,1736261443705,-500.0,0.00019178,2]
[347986897,1736261443715,-500.0,0.00019178,2]
[347986899,1736261443724,-500.0,0.00019178,2]
[347986901,1736261443733,-500.0,0.00019178,2]
[347986903,1736261443743,-516.33776333,0.00019178,2]
[347986905,1736261443753,-512.0908675,0.00019178,2]
[347986907,1736261443762,-500.0,0.00019178,2]
[347986909,1736261443772,-500.0,0.00019178,2]
[347986911,1736261443781,-500.0,0.00019178,2]
[347986913,1736261443791,-2240.22,0.00019178,2]
[347986915,1736261443800,-939.49,0.00019178,2]
[347986917,1736261443809,-690.97,0.00019178,2]
[347986919,1736261443819,-500.0,0.00019178,2]
[347986921,1736261443828,-500.0,0.00019178,2]
[347986923,1736261443837,-622.59,0.00019178,2]